fUSD/lending_fUSD_20240418
["ID","MTS","AMOUNT","RATE_DAILY","PERIOD"]
[322884101,1713477038839,-500.0,0.0001638,2]
[322884102,1713477038849,-150.0,0.00016411,2]
[322884103,1713477038857,-150.99,0.00016411,2]
[322884104,1713477038867,-1000.0,0.00016413,2]
[322884105,1713477038876,-1091.81,0.00016425,2]
[322884106,1713477038885,-165.78,0.00016436,2]
[322884107,1713477038894,-167.82,0.00016447,2]
[322884108,1713477038902,-200.0,0.000165,2]
[322884109,1713477038911,-167.82,0.0001659,2]
[322884110,1713477038922,-167.82,0.00016733,2]
[322884111,1713477038931,-541.19,0.00016762,2]
[322884112,1713477038940,-499.99,0.00016782,2]
[322884113,1713477038950,-163.0,0.00016821,2]
[322884114,1713477038959,-167.82,0.00016875,2]
[322884115,1713477038968,-150.0,0.00017,2]
[322884116,1713477038978,-167.82,0.00017018,2]
[322884117,1713477038987,-167.82,0.00017161,2]
[322884118,1713477038996,-500.0,0.0001728,2]
[322884119,1713477039005,-8.6303473,0.00017304,2]
[322884121,1713477039555,-159.1896527,0.00017304,2]
[322884123,1713477039565,-626.0,0.000174,2]
[322884125,1713477039574,-2235.401,0.00017472,2]
[322884127,1713477039584,-959.0,0.00017472,2]
[322884129,1713477039594,-461.0,0.00017472,2]
[322884131,1713477039604,-1392.0,0.00017472,2]
[322884133,1713477039622,-265.576,0.00017472,2]
[322884135,1713477039643,-436.0,0.00017472,2]
[322884137,1713477039652,-478.583,0.00017472,2]
[322884140,1713477039661,-1650.0,0.00017472,2]
[322884142,1713477039670,-1055.0,0.00017472,2]
[322884145,1713477039679,-161.672,0.00017472,2]
[322884147,1713477039687,-150.0,0.00017472,2]
[322884150,1713477039698,-150.0,0.000175,2]
[322884151,1713477039706,-150.0,0.00017613,2]
[322884154,1713477039715,-9721.30421668,0.000177,2]
[322884158,1713477039727,-31693.46998332,0.000177,2]
[322884161,1713477039738,-339.0002,0.00017794,2]
[322884164,1713477039746,-155.0,0.00017798,2]
[322884166,1713477039756,-303.18150946,0.00017798,2]
[322884168,1713477039766,-723.57402049,0.00017798,2]
[322884170,1713477039775,-186.052212,0.00017808,2]
[322884172,1713477039784,-5416.31913473,0.0001788,2]
[322884180,1713477039865,-2971.47002055,0.0001788,2]
[322884182,1713477039874,-1000.0,0.00017899,2]
[322884184,1713477039883,-175.5895354,0.000179,2]
[322884186,1713477039892,-170.35086476,0.000179,2]
[322884188,1713477039902,-7500.0,0.000179,2]
[322884190,1713477039911,-20387.86193133,0.000179,2]
[322884192,1713477039920,-20000.0,0.000179,2]
[322884194,1713477039929,-171.25463459,0.000179,2]
[322884196,1713477039938,-958.145762,0.000179,2]
[322884197,1713477039947,-167.33,0.00017979,2]
[322884199,1713477039957,-162.07,0.00017984,2]
[322884201,1713477039966,-157.99989736,0.00017984,2]
[322884203,1713477039975,-431.2357963,0.00017992,2]
[322884205,1713477039985,-157.041906,0.00017992,2]
[322884207,1713477039994,-157.041906,0.00017992,2]
[322884209,1713477040003,-1506.0,0.00017992,2]
[322884211,1713477040013,-157.041906,0.00017992,2]
[322884213,1713477040022,-573.83108006,0.00017993,2]
[322884215,1713477040032,-750.24025445,0.00017993,2]
[322884217,1713477040041,-157.041906,0.00017993,2]
[322884219,1713477040050,-157.041906,0.00017993,2]
[322884221,1713477040059,-157.041906,0.00017993,2]
[322884223,1713477040069,-157.041906,0.00017993,2]
[322884225,1713477040078,-500.0,0.00017993,2]
[322884227,1713477040088,-500.0,0.00017993,2]
[322884229,1713477040097,-500.0,0.00017993,2]
[322884230,1713477040107,-782938.7064327,0.00017994,2]
[322884232,1713477040116,-157.041906,0.00017994,2]
[322884234,1713477040126,-157.041906,0.00017994,2]
[322884236,1713477040136,-157.041906,0.00017994,2]
[322884239,1713477040145,-157.041906,0.00017994,2]
[322884241,1713477040161,-157.041906,0.00017994,2]
[322884243,1713477040171,-395.26008,0.00017994,2]
[322884245,1713477040180,-157.041905,0.00017995,2]
[322884247,1713477040190,-295.041905,0.00017995,2]
[322884249,1713477040199,-784.23096667,0.00017997,2]
[322884251,1713477040208,-1401.79505017,0.00017999,5]
[322884253,1713477040218,-500.0,0.00017999,2]
[322884254,1713477040228,-500.0,0.00017999,2]
[322884256,1713477040237,-500.0,0.00017999,2]
[322884258,1713477040246,-500.0,0.00017999,2]
[322884260,1713477040254,-500.0,0.00017999,2]
[322884262,1713477040263,-500.0,0.00017999,2]
[322884264,1713477040272,-500.0,0.00017999,2]
[322884266,1713477040282,-572.0,0.00018,2]
[322884267,1713477040291,-497.97410619,0.00018,2]
[322884268,1713477040301,-1039808.8990113,0.00018,2]
[322884269,1713477040311,-5000.0,0.00018,2]
[322884270,1713477040323,-155.0,0.00018,2]
[322884271,1713477040332,-40889.42613275,0.00018,2]
[322884272,1713477040341,-509.28969222,0.00018,2]
[322884273,1713477040350,-1474.16348733,0.00018,2]
[322884274,1713477040360,-10000.0,0.00018,2]
[322884275,1713477040369,-266642.9468558,0.00018,2]
[322884276,1713477040378,-796.80608013,0.00018,2]
[322884277,1713477040387,-482.0,0.00018,2]
[322884278,1713477040396,-207692.95491371,0.00018,2]
[322884279,1713477040405,-300.8996866,0.00018,2]
[322884280,1713477040416,-1300.0,0.00018,2]
[322884281,1713477040426,-150.0,0.00018,2]
[322884282,1713477040435,-1047.32124557,0.00018,2]
[322884283,1713477040446,-1047.32124557,0.00018,2]
[322884284,1713477040455,-1047.32124557,0.00018,2]
[322884285,1713477040465,-1047.32124557,0.00018,2]
[322884286,1713477040474,-1047.32124557,0.00018,2]
[322884287,1713477040484,-1047.32124557,0.00018,2]
[322884288,1713477040493,-1047.32124557,0.00018,2]
[322884289,1713477040502,-1047.32124557,0.00018,2]
[322884290,1713477040511,-1047.32124557,0.00018,2]
[322884291,1713477040520,-1047.32124557,0.00018,2]
[322884292,1713477040529,-1047.32124557,0.00018,2]
[322884293,1713477040538,-1047.32124557,0.00018,2]
[322884294,1713477040548,-1047.32124557,0.00018,2]
[322884295,1713477040557,-1047.32124557,0.00018,2]
[322884296,1713477040566,-1047.32124557,0.00018,2]
[322884297,1713477040576,-1047.32124557,0.00018,2]
[322884298,1713477040585,-1047.32124557,0.00018,2]
[322884299,1713477040594,-1047.32124557,0.00018,2]
[322884300,1713477040603,-1047.32124557,0.00018,2]
[322884301,1713477040612,-1047.32124557,0.00018,2]
[322884302,1713477040622,-1047.32124557,0.00018,2]
[322884303,1713477040632,-1047.32124557,0.00018,2]
[322884304,1713477040641,-1047.32124557,0.00018,2]
[322884305,1713477040650,-1047.32124557,0.00018,2]
[322884306,1713477040659,-1047.32124557,0.00018,2]
[322884307,1713477040668,-1047.32124557,0.00018,2]
[322884308,1713477040677,-1047.32124557,0.00018,2]
[322884309,1713477040686,-1047.32124557,0.00018,2]
[322884310,1713477040695,-1047.32124557,0.00018,2]
[322884311,1713477040705,-1047.32124557,0.00018,2]
[322884312,1713477040714,-1047.32124557,0.00018,2]
[322884313,1713477040723,-1047.32124557,0.00018,2]
[322884314,1713477040731,-1047.32124557,0.00018,2]
[322884315,1713477040740,-1047.32124557,0.00018,2]
[322884316,1713477040749,-1047.32124557,0.00018,2]
[322884317,1713477040758,-1047.32124557,0.00018,2]
[322884318,1713477040767,-1047.32124557,0.00018,2]
[322884319,1713477040777,-1047.32124557,0.00018,2]
[322884320,1713477040786,-1047.32124557,0.00018,2]
[322884321,1713477040794,-1047.32124557,0.00018,2]
[322884322,1713477040804,-1047.32124557,0.00018,2]
[322884323,1713477040813,-1047.32124557,0.00018,2]
[322884324,1713477040822,-1047.32124557,0.00018,2]
[322884325,1713477040833,-1047.32124557,0.00018,2]
[322884326,1713477040842,-1047.32124557,0.00018,2]
[322884327,1713477040851,-1047.32124557,0.00018,2]
[322884328,1713477040860,-1047.32124557,0.00018,2]
[322884329,1713477040869,-1047.32124557,0.00018,2]
[322884330,1713477040878,-1047.32124557,0.00018,2]
[322884331,1713477040888,-1047.32124557,0.00018,2]
[322884332,1713477040897,-1047.32124557,0.00018,2]
[322884333,1713477040906,-1047.32124557,0.00018,2]
[322884334,1713477040916,-1047.32124557,0.00018,2]
[322884335,1713477040925,-1047.32124557,0.00018,2]
[322884336,1713477040934,-1047.32124557,0.00018,2]
[322884337,1713477040943,-1047.32124557,0.00018,2]
[322884338,1713477040953,-1047.32124557,0.00018,2]
[322884339,1713477040962,-1047.32124557,0.00018,2]
[322884340,1713477040971,-1047.32124557,0.00018,2]
[322884341,1713477040980,-1047.32124557,0.00018,2]
[322884342,1713477040989,-1047.32124557,0.00018,2]
[322884343,1713477040998,-1047.32124557,0.00018,2]
[322884344,1713477041008,-1047.32124557,0.00018,2]
[322884345,1713477041017,-1047.32124557,0.00018,2]
[322884346,1713477041026,-1047.32124557,0.00018,2]
[322884347,1713477041035,-1047.32124557,0.00018,2]
[322884348,1713477041044,-1047.32124557,0.00018,2]
[322884349,1713477041053,-1047.32124557,0.00018,2]
[322884350,1713477041063,-1047.32124557,0.00018,2]
[322884351,1713477041072,-1047.32124557,0.00018,2]
[322884352,1713477041082,-1047.32124557,0.00018,2]
[322884353,1713477041091,-1047.32124557,0.00018,2]
[322884354,1713477041101,-1047.32124557,0.00018,2]
[322884355,1713477041110,-1047.32124557,0.00018,2]
[322884356,1713477041119,-1047.32124557,0.00018,2]
[322884357,1713477041131,-1047.32124557,0.00018,2]
[322884358,1713477041142,-1047.32124557,0.00018,2]
[322884359,1713477041154,-1000.0,0.00018132,2]
[322884360,1713477041163,-1111.2,0.00018137,2]
[322884361,1713477041172,-8387.78915525,0.00018144,2]
[322884362,1713477041181,-835.0,0.00018165,2]
[322884363,1713477041191,-300.0,0.00018168,2]
[322884364,1713477041201,-151.95,0.00018169,2]
[322884365,1713477041210,-150.0,0.00018169,2]
[322884366,1713477041220,-150.0,0.00018169,2]
[322884367,1713477041230,-150.0,0.00018169,2]
[322884368,1713477041239,-150.0,0.00018169,2]
[322884369,1713477041248,-500.0,0.00018172,2]
[322884370,1713477041258,-20387.8619313,0.00018173,2]
[322884371,1713477041267,-1378.4385858,0.00018188,2]
[322884372,1713477041276,-162.07,0.00018222,2]
[322884373,1713477041285,-161.14869949,0.0001823,2]
[322884374,1713477041294,-200.0,0.0001823,2]
[322884375,1713477041303,-161.58551659,0.00018231,2]
[322884376,1713477041313,-161.58551659,0.00018231,2]
[322884377,1713477041323,-500.0,0.00018231,2]
[322884378,1713477041335,-500.0,0.00018231,2]
[322884379,1713477041346,-500.0,0.00018231,2]
[322884380,1713477041355,-500.0,0.00018231,2]
[322884381,1713477041365,-539.39992859,0.00018231,2]
[322884382,1713477041375,-1107388.2316237,0.00018232,2]
[322884383,1713477041417,-910.53683557,0.00018232,2]
[322884387,1713477046288,-1047.32124557,0.00018,2]
[322884388,1713477046298,-2.37875743,0.00018,2]
[322884389,1713477046309,-450.180002,0.00018,2]
[322884390,1713477046484,-594.76248614,0.00018,2]
[322884391,1713477046493,-1047.32124557,0.00018,2]
[322884392,1713477046502,-1047.32124557,0.00018,2]
[322884393,1713477046512,-1047.32124557,0.00018,2]
[322884394,1713477046521,-1047.32124557,0.00018,2]
[322884395,1713477046530,-1047.32124557,0.00018,2]
[322884396,1713477046539,-436.12328601,0.00018,2]
[322884397,1713477049257,-897.78474,0.000179,2]
[322884398,1713477049365,-1728.5621825,0.000179,2]
[322884399,1713477049376,-611.19795956,0.00018,2]
[322884400,1713477049386,-1047.32124557,0.00018,2]
[322884401,1713477049396,-1047.32124557,0.00018,2]
[322884402,1713477049405,-1047.32124557,0.00018,2]
[322884403,1713477049415,-1047.32124557,0.00018,2]
[322884404,1713477049425,-1047.32124557,0.00018,2]
[322884405,1713477049434,-1047.32124557,0.00018,2]
[322884406,1713477049444,-1047.32124557,0.00018,2]
[322884407,1713477049453,-1047.32124557,0.00018,2]
[322884408,1713477049463,-1047.32124557,0.00018,2]
[322884409,1713477049472,-1047.32124557,0.00018,2]
[322884410,1713477049481,-1047.32124557,0.00018,2]
[322884411,1713477049491,-1047.32124557,0.00018,2]
[322884412,1713477049500,-1047.32124557,0.00018,2]
[322884413,1713477049509,-1047.32124557,0.00018,2]
[322884414,1713477049519,-1047.32124557,0.00018,2]
[322884415,1713477049528,-26453.11233381,0.00018232,2]
[322884416,1713477049541,-95966.85519899,0.00018232,2]
[322884417,1713477049587,-357.28025208,0.00018232,2]
[322884418,1713477049631,-449.02479413,0.00018232,2]
[322884419,1713477049643,-460228.71112922,0.00018232,2]
[322884420,1713477049676,-590.82,0.00018232,2]
[322884421,1713477050193,-1265.88115583,0.00018232,2]
[322884422,1713477102867,-403.0,0.0001956,15]
[322884423,1713477102894,-1597.0,0.0001956,15]
[322884424,1713477111527,1320.4675,0.00015475,2]
[322884425,1713477148581,-2000.0,0.0001956,15]
[322884426,1713477179072,-1562.0,0.0001956,15]
[322884427,1713477179096,-438.0,0.0001956,15]
[322884428,1713477214140,-150.5,0.00019569,15]
[322884429,1713477214166,-389.0,0.00019569,15]
[322884430,1713477214191,-1460.5,0.00019569,15]
[322884431,1713477244552,706.68,0.000185,10]
[322884433,1713477262917,-2000.0,0.00019569,15]
[322884435,1713477309955,-154.44,0.0001956,15]
[322884436,1713477309981,-4845.56,0.0001956,15]
[322884437,1713477327007,-216.44,0.0001956,15]
[322884438,1713477327036,-4783.56,0.0001956,15]
[322884439,1713477571871,551.34,0.00014764,2]
[322884440,1713477683054,1100.0,0.00015503,2]
[322884441,1713477951709,-1250.0,0.00016,2]
[322884442,1713477951733,-165.78,0.00016258,2]
[322884443,1713477951757,-4535.02,0.00016278,2]
[322884444,1713477951777,-664.75,0.00016339,2]
[322884445,1713477951799,-163.0,0.00016388,2]
[322884446,1713477951818,-250.0,0.00016638,2]
[322884447,1713477951839,-3677.332,0.00016658,2]
[322884448,1713477951863,-1000.0,0.00016682,2]
[322884449,1713477951887,-154.72,0.00016717,2]
[322884450,1713477951909,-555.36999983,0.00016731,2]
[322884451,1713477951931,-150.0,0.00016826,2]
[322884452,1713477951952,-3133.36,0.00016827,2]
[322884453,1713477951974,-154.72,0.00016862,2]
[322884454,1713477951996,-558.93097087,0.00016899,2]
[322884455,1713478039271,-200.0,0.00016681,2]
[322884456,1713478039290,-3636.901,0.00016881,2]
[322884457,1713478039311,-2826.08818184,0.00016892,2]
[322884458,1713478071335,523.77,0.00014665,2]
[322884475,1713478231981,-2734.67,0.00016277,2]
[322884476,1713478231991,-154.72,0.00016442,2]
[322884477,1713478232000,-173.98,0.00016589,2]
[322884478,1713478232010,-154.72,0.00016656,2]
[322884479,1713478232020,-282.8206,0.00016799,2]
[322884480,1713478232030,-156.67498363,0.00016799,2]
[322884481,1713478232041,-3667.772,0.0001687,2]
[322884482,1713478232051,-154.72,0.0001687,2]
[322884483,1713478232061,-3701.009,0.00016886,2]
[322884484,1713478232070,-825.87581816,0.00016892,2]
[322884485,1713478232079,-3655.809,0.00016898,2]
[322884486,1713478232089,-524.2749896,0.00016899,2]
[322884487,1713478232098,-1614.8,0.00016899,2]
[322884488,1713478232107,-3613.236,0.000169,2]
[322884489,1713478232116,-853.41710861,0.000169,2]
[322884490,1713478232142,-279.03480448,0.000169,2]
[322884491,1713478232156,-2492.08908691,0.000169,2]
[322884492,1713478232165,-1474.09241909,0.000169,3]
[322884493,1713478232176,-3549.66154191,0.000169,3]
[322884494,1713478232187,-364.18813852,0.000169,3]
[322884495,1713478232199,-1087.10900317,0.000169,3]
[322884496,1713478232271,-57187.69780701,0.000169,3]
[322884497,1713478232305,-3637.49770799,0.000169,3]
[322884498,1713478232317,-3002.23633276,0.000169,3]
[322884499,1713478232330,-9063.21597719,0.000169,3]
[322884503,1713478237940,-358.33485164,0.000169,3]
[322884506,1713478238074,-1823.66477458,0.000169,3]
[322884507,1713478238085,-3713.37619975,0.000169,3]
[322884508,1713478238097,-5984.0,0.000169,3]
[322884509,1713478238171,-7299.21028748,0.000169,3]
[322884510,1713478238179,-523.77,0.00016929,2]
[322884511,1713478238188,-499.99,0.00016997,2]
[322884512,1713478238197,-154.72,0.00017085,2]
[322884513,1713478238206,-156.67498359,0.00017135,2]
[322884514,1713478238215,-19013.8032,0.0001718,2]
[322884516,1713478238224,-167.18,0.00017219,2]
[322884517,1713478238233,-755.88,0.0001726,3]
[322884518,1713478238242,-17201.09,0.0001727,2]
[322884519,1713478238251,-500.0,0.0001728,2]
[322884520,1713478238260,-154.72,0.00017299,2]
[322884521,1713478238269,-2089.0,0.000174,2]
[322884522,1713478238278,-156.67498359,0.00017471,2]
[322884524,1713478238288,-2703.0,0.00017486,2]
[322884526,1713478238297,-551.114,0.00017486,2]
[322884527,1713478238307,-1129.721,0.00017496,2]
[322884528,1713478238316,-461.0,0.00017496,2]
[322884529,1713478238325,-1984.269,0.00017496,2]
[322884530,1713478238334,-968.0,0.00017496,2]
[322884531,1713478238345,-266.718,0.00017496,2]
[322884532,1713478238357,-399.0,0.00017496,2]
[322884533,1713478238367,-3078.0,0.00017496,2]
[322884534,1713478238376,-1068.193,0.00017496,2]
[322884535,1713478238385,-214.0,0.00017496,2]
[322884536,1713478238395,-355.0,0.00017496,2]
[322884537,1713478238404,-443.0,0.00017496,2]
[322884538,1713478238414,-502.15,0.000176,2]
[322884539,1713478238423,-810.88781394,0.000177,2]
[322884540,1713478238441,-1689.11218606,0.000177,2]
[322884541,1713478238450,-150.73,0.00017781,2]
[322884542,1713478238459,-150.0,0.00017781,2]
[322884543,1713478238469,-12.24780954,0.00017781,2]
[322884544,1713478238481,-137.75219046,0.00017781,2]
[322884545,1713478238490,-150.0,0.00017781,2]
[322884546,1713478238499,-150.0,0.00017781,2]
[322884547,1713478238841,-150.0,0.00017781,2]
[322884548,1713478238850,-150.0,0.00017781,2]
[322884549,1713478238859,-150.0,0.00017781,2]
[322884550,1713478238868,-150.0,0.00017781,2]
[322884551,1713478238878,-300.0,0.00017781,2]
[322884552,1713478238887,-341.02160291,0.00017789,2]
[322884553,1713478238896,-162.08,0.00017789,2]
[322884554,1713478238905,-162.38392463,0.00017797,2]
[322884555,1713478238917,-5208.92676619,0.00017797,2]
[322884556,1713478238984,-48331.41584883,0.00017797,2]
[322884557,1713478238995,-10010.94752472,0.00017797,2]
[322884558,1713478239006,-392.8525,0.00017797,2]
[322884559,1713478239077,-638.83492,0.00017797,2]
[322884560,1713478239112,-1011.46713345,0.00017797,2]
[322884561,1713478239962,-307.77500001,0.00017797,2]
[322884576,1713478243276,-332.37,0.00016727,2]
[322884577,1713478243285,-633.37896972,0.00017797,2]
[322884578,1713478243355,-846.67578638,0.00017797,2]
[322884579,1713478243379,-18176.82922307,0.00017797,2]
[322884592,1713478246663,-32095.14905176,0.00017797,2]
[322884593,1713478246824,-17824.04372968,0.00017797,2]
[322884594,1713478246836,-55602.59090121,0.00017797,2]
[322884595,1713478246845,-705.30963033,0.00017798,2]
[322884596,1713478246854,-155.2040644,0.00017798,2]
[322884597,1713478246863,-780.05382611,0.00017798,2]
[322884598,1713478246872,-535.88569986,0.00017798,2]
[322884599,1713478246881,-207.53827236,0.00017798,2]
[322884600,1713478246890,-500.0,0.00017799,2]
[322884601,1713478246899,-6915.27,0.00017799,2]
[322884602,1713478246908,-500.0,0.00017799,2]
[322884603,1713478246917,-458.76219977,0.00017799,2]
[322884604,1713478246927,-8760.83,0.00017799,2]
[322884605,1713478246936,-20090.77,0.00017799,2]
[322884606,1713478246945,-1356.22,0.00017799,2]
[322884607,1713478246954,-500.0,0.00017799,2]
[322884608,1713478246963,-1219.18,0.00017799,2]
[322884609,1713478246972,-4905.83,0.00017799,2]
[322884610,1713478246981,-1310.34,0.00017799,2]
[322884611,1713478246990,-500.0,0.00017799,2]
[322884612,1713478246999,-500.0,0.00017799,2]
[322884613,1713478247008,-621.74,0.00017799,2]
[322884614,1713478247021,-7109.44,0.00017799,2]
[322884615,1713478247031,-10274.46,0.00017799,2]
[322884616,1713478247040,-500.0,0.00017799,2]
[322884617,1713478247049,-8426.13,0.00017799,2]
[322884618,1713478247059,-500.0,0.00017799,2]
[322884619,1713478247068,-2287.19,0.00017799,2]
[322884620,1713478247077,-6651.91,0.00017799,2]
[322884621,1713478247086,-841.99,0.00017799,2]
[322884622,1713478247095,-1373.73,0.00017799,2]
[322884623,1713478247436,-12254.68,0.00017799,2]
[322884624,1713478247451,-5769.52,0.00017799,2]
[322884625,1713478247460,-669.58,0.00017799,2]
[322884626,1713478247470,-500.0,0.00017799,2]
[322884627,1713478247479,-3803.46,0.00017799,2]
[322884628,1713478247488,-16045.58,0.00017799,2]
[322884629,1713478247498,-500.0,0.00017799,2]
[322884630,1713478247508,-500.0,0.00017799,2]
[322884631,1713478247517,-3511.34,0.00017799,2]
[322884632,1713478247531,-733.5,0.00017799,2]
[322884633,1713478247540,-13799.37,0.00017799,2]
[322884634,1713478247551,-1491.34,0.00017799,2]
[322884635,1713478247560,-1379.31,0.00017799,2]
[322884636,1713478247569,-500.0,0.00017799,2]
[322884637,1713478247579,-3489.82,0.00017799,2]
[322884638,1713478247588,-1343.48,0.00017799,2]
[322884639,1713478247599,-500.0,0.00017799,2]
[322884640,1713478247609,-2776.72,0.00017799,2]
[322884641,1713478247619,-10866.93,0.00017799,2]
[322884642,1713478247628,-20511.03,0.00017799,2]
[322884643,1713478247637,-500.0,0.00017799,2]
[322884644,1713478247646,-8043.96,0.00017799,2]
[322884645,1713478247655,-1570.9,0.00017799,2]
[322884646,1713478247664,-500.0,0.00017799,2]
[322884647,1713478247673,-6347.2,0.00017799,2]
[322884648,1713478247682,-500.0,0.00017799,2]
[322884649,1713478247692,-1576.15,0.00017799,2]
[322884650,1713478247701,-500.0,0.00017799,2]
[322884651,1713478247710,-500.0,0.00017799,2]
[322884652,1713478247719,-500.0,0.00017799,2]
[322884653,1713478247729,-27918.15,0.00017799,2]
[322884654,1713478247738,-7619.55,0.00017799,2]
[322884655,1713478247748,-15188.06,0.00017799,2]
[322884656,1713478247757,-500.0,0.00017799,2]
[322884657,1713478247766,-500.0,0.00017799,2]
[322884658,1713478247775,-885.13212891,0.00017799,2]
[322884659,1713478569125,507.25,0.00014867,2]
[322884661,1713478867672,200.0,0.00014201,2]
[322884662,1713479007732,200.26865492,0.0001413,2]
[322884663,1713479083004,481.88,0.00014293,2]
[322884664,1713479125858,200.0,0.00017799,10]
[322884665,1713479126237,200.0,0.00018231,10]
[322884666,1713479127030,200.0,0.00018231,10]
[322884667,1713479127193,200.0,0.00018231,10]
[322884668,1713479127355,200.0,0.00018231,10]
[322884669,1713479127563,200.0,0.00018231,10]
[322884670,1713479128233,200.0,0.00018231,10]
[322884671,1713479128447,200.0,0.00018231,10]
[322884672,1713479128741,200.0,0.00018231,10]
[322884673,1713479128993,200.0,0.00018231,10]
[322884674,1713479234345,-200.0,0.0001603,2]
[322884675,1713479234366,-1823.11,0.00016047,2]
[322884676,1713479234388,-206.26,0.00016103,2]
[322884677,1713479234411,-154.62,0.00016147,2]
[322884678,1713479234432,-160.0,0.00016355,2]
[322884679,1713479234451,-1127.91805791,0.00016456,2]
[322884680,1713479234471,-157.52986535,0.00016457,2]
[322884681,1713479234492,-481.88,0.00016557,2]
[322884682,1713479234512,-157.52986534,0.00016678,2]
[322884683,1713479234531,-166.18,0.00016703,2]
[322884684,1713479234551,-10000.0,0.00016731,2]
[322884685,1713479234572,-840.0,0.0001684,2]
[322884686,1713479234591,-3661.306,0.00016871,2]
[322884687,1713479234611,-200.0,0.00016892,2]
[322884688,1713479234631,-29999.99,0.00016892,2]
[322884689,1713479234652,-157.52986534,0.00016898,2]
[322884690,1713479234671,-576.4916357,0.00016899,2]
[322884691,1713479234690,-152.87406506,0.000169,2]
[322884692,1713479234710,-3743.98128476,0.000169,2]
[322884693,1713479234730,-237.96389361,0.000169,2]
[322884694,1713479234749,-1939.81532613,0.000169,2]
[322884695,1713479234769,-1429.8570556,0.00016931,2]
[322884696,1713479234789,-155.57781209,0.00016952,2]
[322884697,1713479234809,-3669.525,0.00016954,2]
[322884698,1713479234829,-171.87,0.00016987,3]
[322884699,1713479234851,-515.62,0.00016987,3]
[322884700,1713479234871,-227.34773527,0.0001699,2]
[322884701,1713479234892,-167.58,0.0001699,2]
[322884702,1713479234912,-227.34773527,0.0001699,2]
[322884703,1713479234934,-17997.00658854,0.00016997,2]
[322884711,1713479432225,-166.18,0.00016275,2]
[322884712,1713479432234,-2018.77758574,0.00016631,2]
[322884713,1713479432290,-998.83961426,0.00016631,2]
[322884714,1713479432299,-3648.08109627,0.00016898,2]
[322884715,1713479432309,-384.32775712,0.00016899,2]
[322884716,1713479432318,-105.98928817,0.00016899,2]
[322884717,1713479432329,-52.65330757,0.00016899,2]
[322884718,1713479432338,-343.74,0.00016985,3]
[322884719,1713479432347,-155.72,0.00016986,2]
[322884720,1713479432356,-475.41725893,0.00016987,2]
[322884721,1713479432368,-1608.3385607,0.00016987,2]
[322884722,1713479432379,-1564.32527659,0.00016987,2]
[322884723,1713479432389,-155.72,0.00016988,2]
[322884724,1713479432398,-155.72,0.00016988,2]
[322884725,1713479432407,-155.72,0.00016988,2]
[322884726,1713479432416,-155.72,0.00016989,2]
[322884727,1713479432425,-104.09472356,0.00016989,2]
[322884728,1713479432437,-51.62527644,0.00016989,2]
[322884729,1713479432446,-155.72,0.00016989,2]
[322884730,1713479432455,-604.26984198,0.00016994,2]
[322884731,1713479432471,-630.16015802,0.00016994,2]
[322884732,1713479432480,-433.85984142,0.00016994,2]
[322884733,1713479432493,-564.00393569,0.00016994,2]
[322884735,1713479432525,-236.56622289,0.00016994,2]
[322884736,1713479432535,-1513.14120419,0.00016994,2]
[322884739,1713479432546,-12.89879581,0.00016994,2]
[322884741,1713479432555,-1526.04,0.00016994,2]
[322884743,1713479432566,-500.0,0.00016994,2]
[322884744,1713479432576,-500.0,0.00016994,2]
[322884745,1713479432586,-1405.77136914,0.00016994,2]
[322884746,1713479432598,-661.87135703,0.00016994,2]
[322884772,1713479438257,-157.86285769,0.00016986,2]